fUST/lending_fUST_20240720
["ID","MTS","AMOUNT","RATE_DAILY","PERIOD"]
[332676985,1721424643168,-500.0,0.00016438,2]
[332676986,1721424643178,-500.0,0.00016438,2]
[332676987,1721424643187,-500.0,0.00016438,2]
[332676988,1721424643196,-906.56,0.00016438,2]
[332676989,1721424643206,-2166.71,0.00016438,2]
[332676990,1721424643215,-500.0,0.00016438,2]
[332676991,1721424643225,-500.0,0.00016438,2]
[332676992,1721424643239,-500.0,0.00016438,2]
[332676993,1721424643248,-1078.6,0.00016438,2]
[332676994,1721424643259,-500.0,0.00016438,2]
[332676995,1721424643270,-667.87,0.00016438,2]
[332676996,1721424643282,-500.0,0.00016438,2]
[332676997,1721424643291,-500.0,0.00016438,2]
[332676998,1721424643301,-500.0,0.00016438,2]
[332676999,1721424643310,-331.95277693,0.00016438,2]
[332677000,1721424643321,-500.0,0.00016438,2]
[332677001,1721424643331,-515.1428973,0.00016438,2]
[332677002,1721424643340,-500.0,0.00016438,2]
[332677003,1721424643350,-500.0,0.00016438,2]
[332677004,1721424643360,-500.0,0.00016438,2]
[332677005,1721424643369,-500.0,0.00016438,2]
[332677006,1721424643379,-588.8,0.00016438,2]
[332677007,1721424643388,-496.0,0.00016438,2]
[332677008,1721424643398,-511.23631476,0.00016438,2]
[332677009,1721424643408,-1237.8,0.00016438,2]
[332677010,1721424643418,-500.0,0.00016438,2]
[332677011,1721424643427,-500.0,0.00016438,2]
[332677012,1721424643437,-500.0,0.00016438,2]
[332677013,1721424643446,-151.0,0.00016438,2]
[332677014,1721424643455,-151.0,0.00016438,2]
[332677015,1721424643464,-151.0,0.00016438,2]
[332677016,1721424643473,-151.0,0.00016438,2]
[332677017,1721424643485,-500.0,0.00016438,2]
[332677018,1721424643494,-523.09,0.00016438,2]
[332677019,1721424643503,-500.0,0.00016438,2]
[332677020,1721424643512,-500.0,0.00016438,2]
[332677021,1721424643521,-506.45340726,0.00016438,2]
[332677022,1721424643530,-500.0,0.00016438,2]
[332677023,1721424643539,-815.84,0.00016438,2]
[332677024,1721424643549,-876.95,0.00016438,2]
[332677025,1721424643558,-358.23991,0.00016438,2]
[332677026,1721424643568,-500.0,0.00016438,2]
[332677027,1721424643577,-500.0,0.00016438,2]
[332677028,1721424643586,-1192.04,0.00016438,2]
[332677029,1721424643595,-327.51002048,0.00016438,2]
[332677030,1721424643604,-500.0,0.00016438,2]
[332677031,1721424643613,-710.5,0.00016438,2]
[332677032,1721424643623,-497.46049488,0.00016438,2]
[332677070,1721424792748,150.0,0.000214,30]
[332677072,1721425080999,1006.98967796,0.00021,30]
[332677073,1721425536151,-194.104698,0.00014329,2]
[332677074,1721425536173,-226.5958182,0.00014426,2]
[332677076,1721425593106,-23.4041818,0.00014426,2]
[332677077,1721425593130,-195.56409922,0.00014533,2]
[332677079,1721425626106,-54.43590078,0.00014533,2]
[332677080,1721425626130,-250.0,0.00014572,2]
[332677081,1721425626153,-250.0,0.00014612,2]
[332677082,1721425626178,-250.0,0.00014652,2]
[332677083,1721425626204,-250.0,0.00014692,2]
[332677084,1721425626228,-250.0,0.00014732,2]
[332677085,1721425626254,-250.0,0.00014772,2]
[332677086,1721425626275,-166.666666,0.00014795,2]
[332677087,1721425626296,-250.0,0.00014812,2]
[332677088,1721425626318,-250.0,0.00014852,2]
[332677089,1721425626340,-250.0,0.00014891,2]
[332677090,1721425626363,-250.0,0.00014931,2]
[332677091,1721425626386,-250.0,0.00014971,2]
[332677092,1721425626412,-250.0,0.00015011,2]
[332677093,1721425626434,-250.0,0.00015051,2]
[332677094,1721425626461,-250.0,0.00015091,2]
[332677095,1721425626486,-250.0,0.00015131,2]
[332677096,1721425626514,-250.0,0.0001517,2]
[332677097,1721425626538,-250.0,0.0001521,2]
[332677098,1721425626560,-250.0,0.0001525,2]
[332677099,1721425626588,-250.0,0.0001529,2]
[332677100,1721425626611,-1321.11439827,0.00015609,2]
[332677101,1721425626631,-300.0,0.00015707,2]
[332677102,1721425626653,-514.31919874,0.00015708,2]
[332677103,1721425629129,-154.2268813,0.00015708,2]
[332677104,1721425630102,-467.94050529,0.00015708,2]
[332677151,1721425834349,-300.0,0.00015707,2]
[332677153,1721425834359,-1219.78938365,0.00015708,2]
[332677159,1721425834410,-7417.90139432,0.00015708,2]
[332677249,1721425840045,-1605.98536185,0.00015708,2]
[332677251,1721425840084,-1168.57482,0.00015708,2]
[332677253,1721425840096,-517.29939446,0.00015708,2]
[332678002,1721426409046,550.64689892,0.0001,2]
[332678005,1721426575009,152.96,0.000224,31]
[332678006,1721426575120,152.96,0.000224,31]
[332678007,1721426575184,152.96,0.000224,31]
[332678008,1721426575239,152.96,0.000224,31]
[332678009,1721426575295,152.96,0.000224,31]
[332678010,1721426575359,152.96,0.000224,31]
[332678011,1721426575421,152.96,0.000224,31]
[332678012,1721426575492,152.96,0.000224,31]
[332678013,1721426575547,152.96,0.000224,31]
[332678014,1721426575609,152.96,0.000224,31]
[332678015,1721426575659,152.96,0.000224,31]
[332678016,1721426575714,152.96,0.000224,31]
[332678017,1721426575770,152.96,0.000224,31]
[332678018,1721426575842,152.96,0.000224,31]
[332678019,1721426575913,152.96,0.000224,31]
[332678020,1721426575975,152.96,0.000224,31]
[332678021,1721426576044,152.96,0.000224,31]
[332678022,1721426576102,152.96,0.000224,31]
[332678023,1721426576162,152.96,0.000224,31]
[332678024,1721426612523,493.78866334,0.00012121,2]
[332678028,1721426758135,-251.4190689,0.00014298,2]
[332678029,1721426758157,-441.4399531,0.00014344,2]
[332678032,1721426827427,-473.35891699,0.00014344,2]
[332678033,1721426834117,-481.1652382,0.00014344,2]
[332678034,1721426844104,-374.55970381,0.00014344,2]
[332678035,1721426844129,-1674.86502754,0.0001444,2]
[332678036,1721426846145,-500.0,0.0001444,2]
[332678037,1721426847139,-226.89772375,0.0001444,2]
[332678038,1721426848100,-334.62591874,0.0001444,2]
[332678039,1721426950096,-285.82523337,0.0001444,2]
[332678040,1721426950118,-250.0,0.00014554,2]
[332678041,1721426950140,-250.0,0.00014594,2]
[332678042,1721426950163,-214.17476663,0.00014634,2]
[332678043,1721426951296,-35.82523337,0.00014634,2]
[332678044,1721426951319,-250.0,0.00014674,2]
[332678045,1721426951343,-250.0,0.00014714,2]
[332678046,1721426951366,-250.0,0.00014754,2]
[332678049,1721426958094,-250.0,0.00014793,2]
[332678050,1721426958116,-166.666666,0.00014795,2]
[332678051,1721426958138,-250.0,0.00014833,2]
[332678052,1721426958162,-250.0,0.00014873,2]
[332678053,1721426958187,-250.0,0.00014913,2]
[332678054,1721426958209,-57.95721047,0.00014953,2]
[332678130,1721427038038,-192.04278953,0.00014953,2]
[332678131,1721427038048,-176.20395695,0.00014993,2]
[332678162,1721427040100,-73.79604305,0.00014993,2]
[332678163,1721427040112,-300.0,0.00014999,2]
[332678164,1721427040123,-300.0,0.00014999,2]
[332678165,1721427040133,-520.44154165,0.00015,2]
[332678166,1721427040142,-306.07537966,0.00015,2]
[332678167,1721427040151,-2843.17391,0.00015,2]
[332678168,1721427040161,-287.72462905,0.00015,2]
[332678169,1721427040171,-250.0,0.00015033,2]
[332678170,1721427040179,-250.0,0.00015073,2]
[332678171,1721427040189,-250.0,0.00015113,2]
[332678172,1721427040198,-250.0,0.00015153,2]
[332678173,1721427040207,-250.0,0.00015193,2]
[332678174,1721427040217,-153.0,0.000152,2]
[332678175,1721427040227,-153.0,0.000152,2]
[332678176,1721427040237,-153.0,0.000152,2]
[332678177,1721427040247,-250.0,0.00015233,2]
[332678178,1721427040257,-293.6566525,0.00015256,2]
[332678179,1721427040266,-206.4665977,0.00015256,2]
[332678180,1721427040276,-250.0,0.00015272,2]
[332678181,1721427040285,-153.0,0.000153,2]
[332678182,1721427040295,-306.0,0.000153,2]
[332678183,1721427040305,-153.0,0.000153,2]
[332678184,1721427040315,-250.0,0.00015312,2]
[332678185,1721427040324,-306.0,0.00015356,2]
[332678186,1721427040334,-4389.32802054,0.00015414,2]
[332678187,1721427040343,-290.63143281,0.00015419,2]
[332678188,1721427040352,-306.0,0.00015478,2]
[332678189,1721427040362,-153.0,0.00015478,2]
[332678190,1721427040372,-412.9331954,0.00015478,2]
[332678191,1721427040381,-272.5544633,0.00015478,2]
[332678192,1721427040391,-183.29204514,0.000156,2]
[332678193,1721427040401,-1253.30859623,0.00015612,2]
[332678194,1721427040411,-7680.0235591,0.00015708,2]
[332678195,1721427040420,-34990.6027304,0.00015709,2]
[332678196,1721427040430,-902.02666725,0.00015741,2]
[332678197,1721427040439,-154.2268813,0.00015804,2]
[332678198,1721427040448,-2425.643977,0.00016159,2]
[332678199,1721427040459,-150.0,0.00016264,2]
[332678200,1721427040468,-504.0,0.00016264,2]
[332678201,1721427040478,-209.0841976,0.00016273,2]
[332678202,1721427040487,-918.64334807,0.00016309,2]
[332678203,1721427040496,-1174.33367367,0.00016309,2]
[332678204,1721427040505,-1104.59573312,0.00016309,2]
[332678205,1721427040515,-1550.45370069,0.00016338,2]
[332678206,1721427040524,-5512.28778417,0.00016347,2]
[332678207,1721427040533,-10599.80274457,0.00016347,2]
[332678208,1721427040543,-1173.46626639,0.00016348,2]
[332678220,1721427043600,-79.84232977,0.00016348,2]
[332678221,1721427043610,-684.11921156,0.00016418,2]
[332678233,1721427183626,152.98,0.000224,31]
[332678234,1721427183679,152.98,0.000224,31]
[332678235,1721427183732,152.98,0.000224,31]
[332678236,1721427183903,152.98,0.000224,31]
[332678237,1721427184013,152.98,0.000224,31]
[332678238,1721427184078,152.98,0.000224,31]
[332678239,1721427184144,152.98,0.000224,31]
[332678240,1721427184201,152.98,0.000224,31]
[332678241,1721427184260,152.98,0.000224,31]
[332678242,1721427184319,152.98,0.000224,31]
[332678243,1721427184380,152.98,0.000224,31]
[332678244,1721427185399,152.98,0.000224,31]
[332678250,1721427790787,153.0,0.000224,31]
[332678251,1721427790850,153.0,0.000224,31]
[332678252,1721427790910,153.0,0.000224,31]
[332678253,1721427790972,153.0,0.000224,31]
[332678254,1721427791036,153.0,0.000224,31]
[332678255,1721427791303,153.0,0.000224,31]
[332678256,1721427791355,153.0,0.000224,31]
[332678257,1721427791418,153.0,0.000224,31]
[332678258,1721427791475,153.0,0.000224,31]
[332678259,1721427791536,153.0,0.000224,31]
[332678260,1721427791593,153.0,0.000224,31]
[332678261,1721427791646,153.0,0.000224,31]
[332678262,1721427815231,215.79050159,9.999e-05,2]
[332678263,1721427837032,1500.0,0.00022,31]
[332678265,1721427956145,-166.666666,0.00014795,2]
[332678266,1721427956170,-250.0,0.00015054,2]
[332678267,1721427956198,-250.0,0.00015095,2]
[332678268,1721427956223,-58.19141376,0.00015136,2]
[332678270,1721428005316,1000.0,0.0002502,120]
[332678272,1721428029099,-1469.6342951,0.0001452,2]
[332678273,1721428029124,-68.13392423,0.00015136,2]
[332678274,1721428034111,-250.0,0.00015467,2]
[332678275,1721428034135,-250.0,0.00015508,2]
[332678276,1721428034158,-250.0,0.00015549,2]
[332678277,1721428034181,-250.0,0.00015591,2]
[332678278,1721428034204,-250.0,0.00015632,2]
[332678279,1721428034226,-250.0,0.00015673,2]
[332678280,1721428034248,-570.88409,0.00015702,2]
[332678281,1721428034276,-63.21724336,0.00015702,2]
[332678282,1721428034297,-103.44942464,0.00015707,2]
[332678283,1721428039101,-250.0,0.00014632,2]
[332678284,1721428039128,-250.0,0.00014672,2]
[332678285,1721428039153,-188.38240298,0.00014712,2]
[332678286,1721428044106,-61.61759702,0.00014712,2]
[332678287,1721428044132,-250.0,0.00014752,2]
[332678288,1721428044157,-20.62517865,0.00014793,2]
[332678289,1721428048109,-229.37482135,0.00014793,2]
[332678290,1721428048132,-250.0,0.00014833,2]
[332678291,1721428048156,-20.62517865,0.00014873,2]
[332678345,1721428240243,-229.37482135,0.00014873,2]
[332678346,1721428240253,-250.0,0.00014913,2]
[332678347,1721428240263,-250.0,0.00014953,2]
[332678348,1721428240273,-250.0,0.00014993,2]
[332678349,1721428240283,-201.38512829,0.00015,2]
[332678350,1721428240292,-250.0,0.00015033,2]
[332678351,1721428240302,-250.0,0.00015074,2]
[332678352,1721428240311,-250.0,0.00015114,2]
[332678353,1721428240321,-250.0,0.00015154,2]
[332678354,1721428240331,-250.0,0.00015194,2]
[332678355,1721428240340,-250.0,0.00015234,2]
[332678356,1721428240349,-250.0,0.00015274,2]
[332678357,1721428240359,-250.0,0.00015314,2]
[332678358,1721428240368,-250.0,0.00015354,2]
[332678359,1721428240380,-250.0,0.00015395,2]
[332678360,1721428240392,-939.98144712,0.00015608,2]
[332678361,1721428240404,-300.0,0.00015707,2]
[332678362,1721428240414,-2000.0,0.00015708,14]
[332678363,1721428240424,-2033.35139556,0.00015708,14]
[332678364,1721428240439,-2384.0747992,0.00015708,2]
[332678380,1721428243307,-452.45148543,0.00015708,2]
[332678381,1721428244517,-2674.64232542,0.00015708,2]
[332678382,1721428244530,-1024.37214939,0.00015708,2]
[332678383,1721428244543,-460.20115987,0.00015708,2]
[332678384,1721428244552,-2450.2629273,0.00015708,2]
[332678385,1721428244566,-2492.5,0.00015708,2]
[332678401,1721428392155,463.50288183,9.999e-05,2]
[332678402,1721428396235,153.03,0.000224,31]
[332678403,1721428396300,153.03,0.000224,31]
[332678404,1721428396360,153.03,0.000224,31]
[332678405,1721428396439,153.03,0.000224,31]
[332678406,1721428396511,153.03,0.000224,31]
[332678407,1721428396569,153.03,0.000224,31]
[332678408,1721428396630,153.03,0.000224,31]
[332678409,1721428396683,153.03,0.000224,31]
[332678411,1721428495600,493.35816877,9.999e-05,2]
[332678412,1721428553551,155.21915129,9.999e-05,2]
[332678414,1721428647269,-185.001855,0.0001434,2]
[332678415,1721428647299,-185.001855,0.00014589,2]
[332678416,1721428647327,-2527.12391,0.00014684,2]
[332678417,1721428647354,-166.666666,0.00014795,2]
[332678418,1721428647386,-185.001855,0.00014838,2]
[332678419,1721428647417,-183.29204514,0.000149,2]
[332678420,1721428647447,-185.001855,0.00015087,2]
[332678421,1721428647473,-183.29204514,0.00015608,2]
[332678422,1721428647505,-822.48376623,0.00015608,2]
[332678423,1721428647533,-300.0,0.00015707,2]
[332678424,1721428647570,-2689.13414749,0.00015708,2]
[332678425,1721428693235,156.27535265,9.999e-05,2]
[332678427,1721428962826,320.70573166,9.999e-05,2]
[332678428,1721429000579,153.05,0.000224,31]
[332678429,1721429000651,153.05,0.000224,31]
[332678430,1721429000718,153.05,0.000224,31]
[332678431,1721429000776,153.05,0.000224,31]
[332678432,1721429000836,153.05,0.000224,31]
[332678433,1721429000897,153.05,0.000224,31]
[332678434,1721429000948,153.05,0.000224,31]
[332678435,1721429001027,153.05,0.000224,31]
[332678437,1721429044497,154.79103211,9.999e-05,2]
[332678438,1721429146238,-194.104698,0.00014525,2]
[332678439,1721429146261,-250.0,0.00014617,2]
[332678440,1721429146283,-166.666666,0.00014795,2]
[332678441,1721429146305,-113.48574541,0.000151,2]
[332678443,1721429228139,-149.80457081,0.000151,2]
[332678444,1721429228163,-746.27822342,0.00015541,2]
[332678445,1721429246139,-500.0,0.00015541,2]
[332678446,1721429247088,-307.2268813,0.00015541,2]
[332678447,1721429253377,-460.14962573,0.00015541,2]
[332678448,1721429301553,375.92190244,9.999e-05,2]
[332678449,1721429340396,993.708044,0.0001212,2]
[332678450,1721429347899,179.2865475,0.0001212,2]
[332678451,1721429347923,10420.51619707,0.0001212,2]
[332678452,1721429350026,245.0,0.0001212,2]
[332678453,1721429350050,735.61422822,0.0001212,2]
[332678454,1721429360956,918.64334807,0.0001212,2]
[332678455,1721429364806,135.79255271,0.0001212,2]
[332678456,1721429364829,235.31453779,0.0001212,2]
[332678457,1721429364851,250.0,0.0001212,2]
[332678458,1721429364875,7605.66584163,0.0001212,2]
[332678460,1721429370043,1104.59573312,0.0001212,2]
[332678462,1721429415897,186.62148347,0.00014691,2]
[332678463,1721429415921,250.00280607,0.00014691,2]
[332678464,1721429415943,153.0,0.00014691,2]
[332678465,1721429425295,194.104698,9.999e-05,2]
[332678475,1721429433174,-685.79675,0.00014691,2]
[332678483,1721429438257,-4204.84291214,0.00014691,2]
[332678484,1721429438266,-1500.0,0.00014691,2]
[332678485,1721429438276,-9778.82916565,0.00014691,2]
[332678486,1721429438285,-16036.93020364,0.00014691,2]
[332678487,1721429438295,-2425.643977,0.00015,2]
[332678488,1721429438304,-1107.38930569,0.00015,2]
[332678489,1721429438313,-1107.38930569,0.00015,2]
[332678490,1721429438323,-492.04095382,0.000151,2]
[332678491,1721429438332,-316.17170544,0.00015462,2]
[332678492,1721429438342,-300.0,0.00015706,2]
[332678493,1721429438352,-277.90945275,0.00015707,2]
[332678494,1721429438361,-348.05815106,0.00015707,2]
[332678495,1721429438371,-176.75719991,0.00015707,2]
[332678496,1721429438380,-179.24277567,0.00015707,2]
[332678497,1721429438390,-13649.32039965,0.00015708,2]
[332678499,1721429438399,-5510.67108053,0.00015708,2]
[332678500,1721429438409,-20746.06049871,0.00015708,2]
[332678501,1721429438418,-2708.53736941,0.00015708,2]
[332678502,1721429438431,-32341.65068756,0.00015708,2]
[332678503,1721429438444,-523.03987634,0.00015708,2]
[332678504,1721429438456,-2123.06633741,0.00015954,2]
[332678505,1721429438469,-4114.21201956,0.00016153,2]
[332678506,1721429438481,-151.0,0.00016159,2]
[332678507,1721429438494,-153.0,0.000162,2]
[332678508,1721429438506,-452.8622583,0.00016253,2]
[332678509,1721429438516,-153.0,0.000163,2]
[332678510,1721429438526,-153.0,0.000163,2]
[332678511,1721429438538,-1470.36655198,0.00016327,2]
[332678512,1721429438550,-1470.36655198,0.0001633,2]
[332678513,1721429438561,-1470.36655198,0.00016333,2]
[332678514,1721429438572,-151.0,0.00016333,2]
[332678515,1721429438584,-1470.36655198,0.00016335,2]
[332678516,1721429438596,-500.0,0.00016337,2]
[332678517,1721429438608,-166.99704497,0.00016337,2]
[332678518,1721429438620,-353.79195359,0.00016337,2]
[332678519,1721429438631,-378.81633737,0.00016337,2]
[332678520,1721429438642,-560.52432553,0.00016337,2]
[332678521,1721429438655,-500.0,0.00016337,2]
[332678522,1721429438668,-500.0,0.00016337,2]
[332678523,1721429438679,-500.0,0.00016337,2]
[332678524,1721429438691,-500.0,0.00016337,2]
[332678525,1721429438702,-500.0,0.00016337,2]
[332678526,1721429438713,-500.0,0.00016337,2]
[332678527,1721429438723,-500.0,0.00016337,2]
[332678528,1721429438734,-277.25524173,0.00016337,2]
[332678529,1721429438746,-500.0,0.00016337,2]
[332678530,1721429438757,-500.0,0.00016337,2]
[332678531,1721429438769,-500.0,0.00016337,2]
[332678532,1721429438779,-558.5970276,0.00016337,2]
[332678533,1721429438793,-500.0,0.00016337,2]
[332678534,1721429438804,-237.62587395,0.00016337,2]
[332678535,1721429438814,-500.0,0.00016337,2]
[332678536,1721429438824,-500.0,0.00016337,2]
[332678537,1721429438836,-500.0,0.00016337,2]
[332678538,1721429438848,-151.0,0.00016338,2]
[332678539,1721429438859,-1470.36655198,0.00016338,2]
[332678540,1721429438872,-528.832455,0.00016338,2]
[332678541,1721429438883,-528.832455,0.00016338,2]
[332678542,1721429438894,-1395.40833063,0.00016338,2]
[332678543,1721429438906,-2000.0,0.00016338,2]
[332678544,1721429438916,-48470.86099382,0.00016338,2]
[332678545,1721429438928,-18232.972261,0.00016407,2]
[332678546,1721429438941,-528.832455,0.00016417,2]
[332678547,1721429438952,-528.832455,0.00016417,2]
[332678548,1721429438965,-151.0,0.00016417,2]
[332678549,1721429438976,-151.0,0.00016417,2]
[332678550,1721429438987,-72931.889044,0.00016418,2]
[332678551,1721429438997,-528.832455,0.00016427,2]
[332678552,1721429439007,-528.832455,0.00016427,2]
[332678553,1721429439018,-151.0,0.00016427,2]
[332678554,1721429439029,-528.832455,0.00016428,2]
[332678555,1721429439039,-528.832455,0.00016428,2]
[332678556,1721429439049,-151.0,0.00016428,2]
[332678557,1721429439062,-127630.805827,0.00016428,2]
[332678558,1721429439074,-566.11,0.00016438,2]
[332678559,1721429439085,-450.57053984,0.00016438,2]
[332678560,1721429439097,-500.0,0.00016438,2]
[332678561,1721429439106,-2296.21,0.00016438,2]
[332678562,1721429439117,-500.0,0.00016438,2]
[332678563,1721429439130,-500.0,0.00016438,2]
[332678564,1721429439142,-500.0,0.00016438,2]
[332678565,1721429439154,-1389.76,0.00016438,2]
[332678566,1721429439168,-421.31142735,0.00016438,2]
[332678567,1721429439180,-500.0,0.00016438,2]
[332678568,1721429439191,-1131.94,0.00016438,2]
[332678569,1721429439203,-500.0,0.00016438,2]
[332678570,1721429439213,-500.0,0.00016438,2]
[332678571,1721429439225,-500.0,0.00016438,2]
[332678572,1721429439237,-844.35,0.00016438,2]
[332678573,1721429439248,-500.0,0.00016438,2]
[332678574,1721429439259,-500.0,0.00016438,2]
[332678575,1721429439271,-500.0,0.00016438,2]
[332678576,1721429439283,-500.0,0.00016438,2]
[332678577,1721429439294,-500.0,0.00016438,2]
[332678578,1721429439309,-500.0,0.00016438,2]
[332678579,1721429439320,-500.0,0.00016438,2]
[332678580,1721429439332,-500.0,0.00016438,2]
[332678581,1721429439344,-500.0,0.00016438,2]
[332678582,1721429439356,-500.0,0.00016438,2]
[332678583,1721429439369,-500.0,0.00016438,2]
[332678584,1721429439380,-447.13165735,0.00016438,2]
[332678585,1721429439393,-500.0,0.00016438,2]
[332678586,1721429439406,-500.0,0.00016438,2]
[332678587,1721429439420,-721.79,0.00016438,2]
[332678588,1721429439432,-500.0,0.00016438,2]
[332678589,1721429439446,-500.0,0.00016438,2]
[332678590,1721429439457,-526.47,0.00016438,2]
[332678591,1721429439469,-514.10355527,0.00016438,2]
[332678592,1721429439481,-500.0,0.00016438,2]
[332678593,1721429439492,-618.69,0.00016438,2]
[332678594,1721429439504,-500.0,0.00016438,2]
[332678595,1721429439516,-500.0,0.00016438,2]
[332678596,1721429439529,-525.66109851,0.00016438,2]
[332678597,1721429439541,-861.01,0.00016438,2]
[332678598,1721429439554,-500.0,0.00016438,2]
[332678599,1721429439565,-500.0,0.00016438,2]
[332678600,1721429439577,-500.0,0.00016438,2]
[332678601,1721429439590,-2706.13,0.00016438,2]
[332678602,1721429439603,-628.94,0.00016438,2]
[332678603,1721429439614,-498.87232176,0.00016438,2]
[332678604,1721429439625,-500.0,0.00016438,2]
[332678605,1721429439636,-500.0,0.00016438,2]
[332678606,1721429439647,-508.75229527,0.00016438,2]
[332678607,1721429439661,-500.0,0.00016438,2]
[332678608,1721429439673,-500.0,0.00016438,2]
[332678609,1721429439685,-1110.9,0.00016438,2]
[332678610,1721429439696,-498.1774399,0.00016438,2]
[332678611,1721429439707,-500.0,0.00016438,2]
[332678612,1721429439718,-159.60804227,0.00016438,2]
[332678613,1721429439728,-500.0,0.00016438,2]
[332678614,1721429439739,-500.0,0.00016438,2]
[332678615,1721429439750,-500.0,0.00016438,2]
[332678616,1721429439760,-1041.89,0.00016438,2]
[332678617,1721429439771,-500.0,0.00016438,2]
[332678618,1721429439781,-500.0,0.00016438,2]
[332678619,1721429439794,-500.0,0.00016438,2]
[332678620,1721429439805,-500.0,0.00016438,2]
[332678621,1721429439815,-504.63171882,0.00016438,2]
[332678622,1721429439827,-559.8459662,0.00016438,2]
[332678623,1721429439839,-2762.4,0.00016438,2]
[332678624,1721429439849,-500.0,0.00016438,2]
[332678625,1721429439860,-503.82780258,0.00016438,2]
[332678626,1721429439873,-599.6110334,0.00016438,2]
[332678627,1721429439884,-500.0,0.00016438,2]
[332678628,1721429439895,-500.0,0.00016438,2]
[332678629,1721429439906,-500.0,0.00016438,2]
[332678630,1721429439917,-500.0,0.00016438,2]
[332678631,1721429439928,-500.0,0.00016438,2]
[332678632,1721429439939,-1722.21,0.00016438,2]
[332678633,1721429439953,-506.21244331,0.00016438,2]
[332678634,1721429439965,-501.1559506,0.00016438,2]
[332678635,1721429439975,-500.0,0.00016438,2]
[332678636,1721429439987,-789.94,0.00016438,2]
[332678637,1721429439998,-500.0,0.00016438,2]
[332678638,1721429440009,-500.0,0.00016438,2]
[332678639,1721429440020,-500.0,0.00016438,2]
[332678640,1721429440031,-500.0,0.00016438,2]
[332678641,1721429440042,-500.0,0.00016438,2]
[332678642,1721429440053,-1065.23,0.00016438,2]
[332678643,1721429440063,-500.0,0.00016438,2]
[332678644,1721429440074,-500.0,0.00016438,2]
[332678645,1721429440084,-500.0,0.00016438,2]
[332678646,1721429440095,-500.0,0.00016438,2]
[332678647,1721429440106,-500.0,0.00016438,2]
[332678648,1721429440117,-216.59917431,0.00016438,2]
[332678649,1721429440128,-500.0,0.00016438,2]
[332678650,1721429440139,-500.0,0.00016438,2]
[332678651,1721429440149,-556.02474155,0.00016438,2]
[332678652,1721429440160,-604.61388818,0.00016438,2]
[332678653,1721429440171,-732.35,0.00016438,2]
[332678654,1721429440182,-176.76189301,0.00016438,2]
[332678656,1721429440192,-500.0,0.00016438,2]
[332678658,1721429440204,-502.41604891,0.00016438,2]
[332678660,1721429440215,-500.0,0.00016438,2]
[332678661,1721429440226,-500.0,0.00016438,2]
[332678662,1721429440237,-500.0,0.00016438,2]
[332678663,1721429440248,-500.0,0.00016438,2]
[332678664,1721429440259,-500.0,0.00016438,2]
[332678666,1721429440270,-500.0,0.00016438,2]
[332678667,1721429440281,-500.0,0.00016438,2]
[332678668,1721429440292,-500.0,0.00016438,2]
[332678669,1721429440303,-500.0,0.00016438,2]
[332678670,1721429440315,-500.0,0.00016438,2]